Cogmind - Beta 14 @@@ ROGUE MODE // 2025.03.21 @ 16:04:29 Player: the Result: Destroyed by G-34 Mercenary with Small Laser Performance ------------- Evolutions (0) 0 Regions Visited (1) 200 Robots Destroyed (7) 35 Value Destroyed (120) 120 Prototype IDs (0) 0 Alien Tech Used (0) 0 Bonus (0) 0 TOTAL SCORE: 355 Bonus ------- None Cogmind --------- Core Integrity 0/250 Matter 290/300 Energy 92/100 System Corruption 0% Temperature Cool (6) Movement Core (100) Ox1 Location -10/Materials Parts ------- > --- POWER (1) -------- (None) > --- PROPULSION (2) --- (None) > --- UTILITY (2) ------ Small Storage Unit > --- WEAPON (2) ------- Small Laser > --- INVENTORY (8) ---- Light Ion Engine Light Treads Wheel Peak State ------------ > --- POWER ------------ Ion Engine > --- PROPULSION ------- Wheel Wheel > --- UTILITY ---------- Small Storage Unit Improved Terrain Scanner > --- WEAPON ----------- EM Pulse Gun EM Pulse Gun > --- INVENTORY -------- Light Ion Engine Light Treads Light Treads Light Assault Rifle [Rating: 9] Favorites ----------- Power Ion Engine Engine Ion Engine Propulsion Wheel Treads Light Treads Wheel Wheel Utility Small Storage Unit Device Improved Terrain Scanner Storage Small Storage Unit Weapon EM Pulse Gun Energy Gun EM Pulse Gun Ballistic Gun Light Assault Rifle Build | -11 -10 ------- Run | Yrd Mat Slots Evolved . | . . Power . | . . Propulsion . | . . Utility . | . . Weapon . | . . Parts Attached 11 | 7 4 Power 1 | 1 . Engine 1 | 1 . Core . | . . Reactor . | . . Propulsion 4 | 2 2 Treads 2 | . 2 Leg . | . . Wheel 2 | 2 . Hover . | . . Flight . | . . Utility 2 | 2 . Device 1 | 1 . Storage 1 | 1 . Processor . | . . Hackware . | . . Protection . | . . Artifact . | . . Weapon 4 | 2 2 Energy Gun 3 | 2 1 Energy Cannon . | . . Ballistic Gun 1 | . 1 Ballistic Cannon . | . . Launcher . | . . Special Weapon . | . . Impact Weapon . | . . Slashing Weapon . | . . Piercing Weapon . | . . Special Melee Weapon . | . . Unidentified Prototypes . | . . Parts Lost 8 | . 8 Power 1 | . 1 Propulsion 3 | . 3 Utility 1 | . 1 Weapon 3 | . 3 Highest Loss Streak 6 | . 6 To Critical Strikes . | . . Average Slot Usage (%) 84 | . 84 Engine 11 | . 11 Treads 3 | . 3 Wheel 21 | . 21 Device 10 | . 10 Storage 14 | . 14 Energy Gun 18 | . 18 Ballistic Gun 4 | . 4 Peak Build Rating 9 | 9 9 Average Rating 6 | 4 7 On Entrance 4 | . 9 Naked Turns . | . . Heaviest Build 15 | 15 15 Greatest Support 20 | 20 20 Greatest Overweight (x) 1 | . 1 Average Overweight (x) . | . . Largest Inventory Capacity 8 | 8 8 Average Capacity 7 | 7 8 Most Carried 5 | 4 5 Average Carried 3 | 3 4 Final Capacity 8 | 8 8 Final Carried 4 | 4 3 Class Distribution -------------------- 100% | Mutant Dominant Class ---------------- Mutant | -10/Materials Resources | -11 -10 ----------- Run | Yrd Mat Matter Collected 303 | 244 59 Remotely . | . . Salvage Created 197 | 55 142 Parts 15 | 6 9 Haulers Intercepted . | . . Recyclers Shooed . | . . Parts Field Recycled . | . . Retrieved Matter . | . . Parts Self-Destructed . | . . Prevented . | . . Kills | -11 -10 ------- Run | Yrd Mat Combat Hostiles Destroyed 4 | . 4 Guns 3 | . 3 AOE 1 | . 1 Classes Destroyed 4 | 1 3 Builder 1 | . 1 Tunneler 2 | 2 . Swarmer 2 | . 2 Grunt 2 | . 2 Best Kill Streak 2 | 2 2 Combat Bots Only 1 | . 1 Max Kills in Single Turn 2 | 1 2 Gunslinging . | . . Exploded 1 | . 1 Melee . | . . Uniques/NPCs Destroyed . | . . Combat | -11 -10 -------- Run | Yrd Mat Hostile Shots Fired 93 | . 93 Missed 18 | . 18 Damage Taken 884 | . 884 Core 250 | . 250 Absorbed by Shields . | . . Core Remaining (%) 100 | 100 . Volleys Fired 50 | 6 44 Largest 2 | 2 2 Hottest 80 | 80 80 Shots Fired 60 | 12 48 Gun 60 | 12 48 Cannon . | . . Launcher . | . . Special . | . . Kinetic 28 | . 28 Thermal 10 | . 10 Explosive . | . . Electromagnetic 22 | 12 10 Robot Hit Streak 10 | 5 10 Robot Miss Streak 3 | 2 3 Penetration Max . | . . Secondary Targets . | . . Shots Hit Robots 39 | 8 31 Core Hits 15 | 2 13 Critical Kills . | . . Critical Parts Destroyed . | . . Critical Strikes 1 | 1 . Corrupt 1 | 1 . Melee Attacks . | . . Impact . | . . Slashing . | . . Piercing . | . . Sneak Attacks . | . . Combat Hostiles . | . . Follow-up Attacks . | . . Damage Inflicted 491 | 103 388 Guns 385 | 103 282 Cannons . | . . Explosions 106 | . 106 Melee . | . . Ramming . | . . Kinetic 148 | . 148 Thermal 195 | . 195 Explosive . | . . Electromagnetic 148 | 103 45 Impact . | . . Slashing . | . . Piercing . | . . Highest Corruption . | . . Average Corruption . | . . Corruption Purged . | . . Corruption Blocked . | . . Overload Shots . | . . Overflow Damage . | . . Projectiles . | . . Explosions . | . . Melee . | . . Knockbacks . | . . Impact . | . . Kinetic . | . . Secondary . | . . Self-Inflicted Damage 34 | . 34 Shots 1 | . 1 Rammed . | . . Targets Rammed . | . . Kicked . | . . Crushed . | . . Highest Temperature 128 | 128 104 Average Temperature 43 | 72 31 Received Heat Transfer 393 | . 393 Siege Activations . | . . Robots Corrupted . | . . Combat Hostiles . | . . Parts Fried 1 | 1 . Impact Corruptions . | . . Robots Melted . | . . Combat Hostiles . | . . Parts Melted 2 | . 2 Heat Transferred 300 | . 300 Parts Sabotaged . | . . Parts Stolen . | . . Parts Stripped . | . . Power Chain Reactions 1 | . 1 Alert | -11 -10 ------- Run | Yrd Mat Peak Influence 64 | 10 64 Initial 6 | . 6 Average 16 | 2 21 Maximum Alert Level . | . . Low Security (%) 100 | 100 100 Level 1 . | . . Level 2 . | . . Level 3 . | . . Level 4 . | . . Level 5 . | . . High Security . | . . Max Security . | . . Squads Dispatched . | . . Investigation . | . . Extermination . | . . Reinforcement . | . . Assault . | . . Garrison . | . . Intercept . | . . Searches Triggered . | . . Construction Impeded . | . . Haulers Reinforced . | . . Active Scanning Responses . | . . Cargo Convoy Interrupts . | . . Stealth | -11 -10 --------- Run | Yrd Mat Distress Signals 1 | . 1 Communications Jammed . | . . Distress Signals . | . . Times Spotted 9 | . 9 Peak Tracking Total 4 | . 4 Tactical Retreats . | . . Traps | -11 -10 ------- Run | Yrd Mat Traps Triggered . | . . Indirectly . | . . Trap Hack Attempts . | . . Triggered . | . . Disarmed . | . . Reprogrammed . | . . Reused . | . . Traps Extracted . | . . Installed . | . . Triggered . | . . Machines | -11 -10 ---------- Run | Yrd Mat Machines Disabled . | . . Max in Single Turn . | . . Machines Repaired . | . . Machines Dismantled . | . . Machines Sabotaged . | . . Overloaded Fab Kills . | . . Hacking | -11 -10 --------- Run | Yrd Mat Machines Accessed 1 | . 1 Terminals . | . . Fabricators . | . . Repair Stations . | . . Recycling Units 1 | . 1 Scanalyzers . | . . Garrison Access . | . . Total Hacks 2 | . 2 Successful 2 | . 2 Failed . | . . Catastrophic . | . . Database Lockouts . | . . Manual . | . . Terminals . | . . Fabricators . | . . Repair Stations . | . . Recycling Units 2 | . 2 Scanalyzers . | . . Garrison Access . | . . Terminal Hacks . | . . Fabricator Hacks . | . . Repair Station Hacks . | . . Recycling Unit Hacks 2 | . 2 Report Inventory 1 | . 1 Retrieve Components 1 | . 1 Scanalyzer . | . . Garrison Access Hacks . | . . Unauthorized Hacks . | . . Terminals . | . . Fabricators . | . . Repair Stations . | . . Recycling Units . | . . Scanalyzers . | . . Garrison Access . | . . Data Cores Recovered . | . . Used . | . . Hacking Detections 1 | . 1 Full Trace Events . | . . Feedback Events . | . . Feedback Blocked . | . . Robot Schematics Acquired . | . . Robots Built . | . . Authchips . | . . Time . | . . Total Robot Build Rating . | . . Part Schematics Acquired . | . . Parts Built . | . . Authchips . | . . Time . | . . Total Part Build Rating . | . . Parts Repaired . | . . Time . | . . Parts Recycled . | . . Recycled Matter . | . . Retrieved Matter . | . . Retrieved Components 1 | . 1 Parts Scanalyzed . | . . Part Schematics Acquired . | . . Parts Damaged . | . . Bothacking | -11 -10 ------------ Run | Yrd Mat Used RIF Installer . | . . Robots Hacked . | . . Non-combat . | . . Combat . | . . Robot Hacks Applied . | . . Relay Couplers Released . | . . Fabnet Peak Effective % . | . . Robots Rewired . | . . Allies Hacked . | . . Hacks Repelled . | . . Allies | -11 -10 -------- Run | Yrd Mat Total Allies . | . . Largest Group . | . . Highest-Rated Group . | . . Highest-Rated Ally . | . . Total Orders . | . . Ally Attacks . | . . Total Damage . | . . Kills . | . . Allies Corrupted . | . . Allies Melted . | . . Intel | -11 -10 ------- Run | Yrd Mat Robot Analysis Total . | . . Derelict Logs Recovered . | . . Drone Launches . | . . Drone Recoveries . | . . Exploration | -11 -10 ------------- Run | Yrd Mat Turns Passed 286 | 73 213 Spaces Moved 187 | 44 143 Core 3 | 2 1 Treads 4 | . 4 Legs . | . . Wheels 180 | 42 138 Hover . | . . Flight . | . . Fastest Speed 50 | 50 80 Average Speed 81 | 78 82 Slowest Speed 160 | 80 160 Overloaded Moves . | . . Propulsion Burnouts . | . . Robots Hopped . | . . Cave-ins Triggered . | . . Exploration Rate (%) 12 | 4 21 Regions Visited 1 Branch Regions . Pre-discovered Areas . | . . Known Exits Taken . | . . Unknown Exits Taken 1 | 1 . Scrap Searched . | . . Spaces Dug . | . . Terrain Destroyed 8 | . 8 Melee . | . . Projectile . | . . AOE 8 | . 8 Terrain Rammed . | . . Walls Destroyed . | . . Machines Disabled . | . . Actions | -11 -10 --------- Run | Yrd Mat Total 262 | 66 196 Wait 10 | 6 4 Move 186 | 43 143 Hop . | . . Pick Up 5 | 4 1 Fast Attach 8 | 7 1 Attach 2 | . 2 Detach . | . . Swap 1 | . 1 Drop . | . . Fire 50 | 6 44 Melee . | . . Ram . | . . Kick . | . . Crush . | . . Escape Stasis . | . . Rewire . | . . Trap . | . . Miscellaneous . | . . Route ------- -11/Scrapyard -10/Materials History --------- Turn | Location | Event 12 | -11/Scrapyard | Discovered new exit (range 15) 74 | -11/Scrapyard | Entered Materials 267 | -10/Materials | Core integrity fell below 50% 282 | -10/Materials | Core integrity fell below 20% 287 | -10/Materials | Destroyed by G-34 Mercenary with Small Laser Last Messages --------------- Imp. Terrain Scanner destroyed. Acquired 1 matter. Wheel destroyed. Acquired 8 matter. U-05 Engineer builds a Wall. Ion Engine destroyed. Critical hit (Burn: +37). U-05 Engineer builds a Wall. Lgt. Treads destroyed. G-34 Mercenary destroyed. Lgt. Assault Rifle destroyed. Acquired 8 matter. Lgt. Treads destroyed. Acquired Sml. Laser. R-06 Scavenger collects Aluminum Leg. R-06 Scavenger collects Heat Sink. K-01 Serf collects debris. Aluminum Leg melted. G-47 Trooper destroyed. K-01 Serf collects debris. Map ----- +----------------------------------------------------+ | ?????????????????????????????????????????????????? | | ?????????????????????????????????????????????????? | | ?????????????????????????????????????????????????? | | ?????????????????????????????????????????????????? | | ?????????????????????????????????????????????????? | | ?????????????????????????????????????????????????? | | ?????????????????????????????????????????????????? | | ?????????????????????????????????????????????????? | | ?????????????????????????????????????????????????? | | ?????????????????????????????????????????????????? | | ?????????????????????"??????? ???????????????????? | | ?????????????????????????????????????????????????? | | ?????????????????????????????????????????????????? | | ??????????????????????? ?????????????????????????? | | ?????????????????????????????????????????????????? | | ???????????????? ???#????????????????????????????? | | ??????????????? ?????????????????????????????????? | | ??????????????? ????????????????????????????????? | | ????????????????# ???????#?????????????? #???????? | | ????????????#???# ??????????????????????????????? | | ????????????????# ???????#?????????"???????????? | | ???????????????## ##??#????????????????????????? | | ???????????????# ########??###############???? | | ???????????????# ##?# #???? | | ???????????????# #### "" """ """ #???? | | ?????????????#?# r %@ ##?# "Y """ """ #???? | | ???????????????# m####%*%##?# "" """ """ #???? | | ???????????????## ????## g##?# #???? | | ????????????????#??????## k ##?# #???? | | ???????????????????????## r ##########+########### | | ????????????????????????# | | ?????????????#??????????# | | ?????????????????????#??# | | ?????????????????? ?????# ### ### ############ | | ????????????????????????# ## # #??????????? | | ??????????? ????????????# ### # #??????????? | | ????????????????????????# #? #### #########??? | | ????????????????#???????# #?????# # #??? | | ????????????????????????# #??#??# # #??? | | ??????????????? ??????### ##????# # #??? | | ????????????????????????# ####### # #??? | | ????????????????????????# ## # #??? | | ????????????? ??????????# ## + """ ##?? | | ????????????????????????# ## # """"" #??? | | ????????????????????????# ## ##+### """"" #??? | | ????????????????????????# ## # ## """"" ##?? | | ????????????????????#???# ## # ## """ #??? | | ???????????? ? ?? ??????## ### + ## #??? | | ?????????????????????????# #?# # ! ########?#??? | | ?????????????????????????# #?# # #???????????? | +----------------------------------------------------+ Best States ------------- Heat Dissipation 25 Energy Generation 10 Energy Capacity 250 Matter Stores 300 Matter Capacity 300 Sight Range 16 Terrain Scan Range 16 Terrain Scan Density 10 Evasion (%) 44 Recoil Reduction 2 Item Schematics ----------------- None Robot Schematics ------------------ None Fabricated ------------ Nothing Alien Tech Used ----------------- None Achievements -------------- None Challenges ------------ None Game ------ Seed AntimatterFrostGenerator Manual? 0 Play Time 00:05:56 Cumulative 24.6 hours Start 2025.03.21 @ 16:00:50 End 2025.03.21 @ 16:04:29 Sessions 1 Manual Loads 0 Difficulty Rogue Special Mode None Game No. 18 Rogue 18 Adventurer 0 Explorer 0 Win Type - Total 0 Types 0/0/0/0/0/0/0/0/0 Lore% 9 Gallery% 25 Achievement% 24 Wizard Run 0 Options --------- Layout 1 ASCII 0 Keyboard 0 Movement Mouse Keybinds 0 Fullscreen 1 Font 24/Smallcaps Map View 50x35 Zoom Use 0% Tactical HUD 0 Map Filters NONE Filters NONE Steam 1 RUN: 93563ecd-7692-4a8b-b12f-91e375067650